[Event "Panevezys Elite 2018"]
[Site "Panevezys"]
[Date "2018.07.03"]
[Round "6.4"]
[White "Grib, Roman"]
[Black "Badelka, Olga"]
[Result "0-1"]
[ECO "B30"]
[WhiteElo "2445"]
[BlackElo "2407"]
[Annotator "ChessBase"]
[PlyCount "114"]
[EventDate "2018.06.29"]
[EventType "swiss"]
[EventRounds "9"]
[EventCountry "LTU"]
[SourceTitle "playchess.com"]
[Source "ChessBase"]
[SourceQuality "1"]
[TimeControl "40/5400+30:1800+30"]

1. e4 c5 2. Nf3 Nc6 3. Bb5 e6 4. Bxc6 bxc6 5. d3 Ne7 6. Qe2 d5 7. b3 Ng6 8. h4 h5 9. e5 Be7 10. g3 c4 11. dxc4 Ba6 12. O-O c5 13. Bg5 dxc4 14. Bxe7 Nxe7 15. Na3 Nf5 16. Rfd1 Qc8 17. Nxc4 Qc6 18. Ng5 Bb7 19. f3 Nxg3 20. Qd3 Nf5 21. Na5 c4 22. Nxc4 O-O 23. Ne4 Nxh4 24. Kf2 Nxf3 25. Qxf3 Qxe4 26. Qxe4 Bxe4 27. c3 f6 28. Rd6 fxe5+ 29. Ke3 Bd5 30. Nxe5 h4 31. Rg1 Rf5 32. Ng6 Rf3+ 33. Ke2 Rxc3 34. Rd7 Rc2+ 35. Kd3 Rg2 36. Rxg2 Bxg2 37. Nxh4 Bh3 38. Ke3 Kh7 39. Nf3 Kh6 40. Ne5 g5 41. b4 Bf5 42. b5 Kh5 43. Nc6 g4 44. Rxa7 Rg8 45. Kf2 g3+ 46. Kg1 Rc8 47. Ra4 Bh3 48. Ra3 Kh4 49. Ra7 Bf5 50. Rd7 e5 51. Rd5 Be4 52. Rc5 Bd3 53. b6 Kh3 54. Rc3 Ba6 55. a4 e4 56. Rc2 Rf8 57. Rc1 g2 0-1

[Event "Panevezys Elite 2018"]
[Site "Panevezys"]
[Date "2018.07.03"]
[Round "6.5"]
[White "Priyanka Nutakki"]
[Black "Krivonosov, Oleg"]
[Result "1/2-1/2"]
[ECO "C50"]
[WhiteElo "2180"]
[BlackElo "2399"]
[Annotator "ChessBase"]
[PlyCount "39"]
[EventDate "2018.06.29"]
[EventType "swiss"]
[EventRounds "9"]
[EventCountry "LTU"]
[SourceTitle "playchess.com"]
[Source "ChessBase"]
[SourceQuality "1"]
[TimeControl "40/5400+30:1800+30"]

1. e4 e5 2. Nf3 Nc6 3. Bc4 Bc5 4. d3 Nf6 5. O-O d6 6. a4 a6 7. c3 Ba7 8. h3 h6 9. Re1 O-O 10. Nbd2 Re8 11. Nf1 Be6 12. Bxe6 Rxe6 13. Be3 Bxe3 14. Nxe3 d5 15. Nf5 dxe4 16. dxe4 Qxd1 17. Raxd1 Rd8 18. Rxd8+ Nxd8 19. Ne3 Nxe4 20. Nd5 1/2-1/2

[Event "Panevezys Elite 2018"]
[Site "Panevezys"]
[Date "2018.07.03"]
[Round "6.6"]
[White "Ratsma, Midas"]
[Black "Vovk, Ilja"]
[Result "1-0"]
[ECO "C25"]
[WhiteElo "2253"]
[BlackElo "2273"]
[Annotator "ChessBase"]
[PlyCount "91"]
[EventDate "2018.06.29"]
[EventType "swiss"]
[EventRounds "9"]
[EventCountry "LTU"]
[SourceTitle "playchess.com"]
[Source "ChessBase"]
[SourceQuality "1"]
[TimeControl "40/5400+30:1800+30"]

1. e4 e5 2. Nc3 Nc6 3. g3 g6 4. Bg2 Bg7 5. Nge2 Nge7 6. O-O O-O 7. d3 d6 8. f4 exf4 9. Bxf4 h6 10. Qd2 Kh7 11. Be3 Ne5 12. Kh1 b6 13. Nf4 Bb7 14. Qe2 c5 15. Rad1 Bc6 16. d4 cxd4 17. Bxd4 Qd7 18. b3 Rad8 19. Ncd5 Qb7 20. c4 Nxd5 21. exd5 Bd7 22. h3 Rde8 23. Qc2 Qc8 24. Kh2 f5 25. a4 Nf7 26. Bxg7 Kxg7 27. a5 Ne5 28. axb6 axb6 29. Ra1 b5 30. Ra7 Rf7 31. Rc1 bxc4 32. bxc4 Qc5 33. Rb7 g5 34. Rxd7 gxf4 35. Rxf7+ Nxf7 36. gxf4 Qe3 37. Rf1 Rc8 38. Rf3 Qd4 39. Bf1 Kf6 40. Qe2 Qe4 41. Qf2 Re8 42. Bd3 Qe1 43. Qd4+ Kg6 44. Rg3+ Kh5 45. Rg2 Re3 46. Bxf5 1-0

[Event "Panevezys Elite 2018"]
[Site "Panevezys"]
[Date "2018.07.03"]
[Round "6.7"]
[White "Berzina, Ilze"]
[Black "Juksta, Karolis"]
[Result "1/2-1/2"]
[ECO "C08"]
[WhiteElo "2173"]
[BlackElo "2187"]
[Annotator "ChessBase"]
[PlyCount "182"]
[EventDate "2018.06.29"]
[EventType "swiss"]
[EventRounds "9"]
[EventCountry "LTU"]
[SourceTitle "playchess.com"]
[Source "ChessBase"]
[SourceQuality "1"]
[TimeControl "40/5400+30:1800+30"]

1. e4 e6 2. d4 d5 3. Nd2 c5 4. exd5 exd5 5. Ngf3 a6 6. dxc5 Bxc5 7. Nb3 Bb6 8. Bg5 Ne7 9. Be2 Nbc6 10. O-O O-O 11. Nbd4 h6 12. Bf4 Re8 13. Re1 Bg4 14. c3 Nf5 15. Nxc6 bxc6 16. h3 Bxf3 17. Bxf3 Qh4 18. Qd2 Bxf2+ 19. Qxf2 Qxf4 20. Bg4 Qxf2+ 21. Kxf2 Nd6 22. Bd7 Reb8 23. Bxc6 Rxb2+ 24. Kg1 Rc8 25. Bxd5 Rxc3 26. Re7 Rd2 27. Bf3 Ra3 28. Rd7 Kf8 29. Rb1 Raxa2 30. Rb8+ Ne8 31. Bd5 Ra1+ 32. Kh2 Rf2 33. Bf3 Ra5 34. Ra8 Rb2 35. Raa7 Rf5 36. Bd5 Rbf2 37. Bc6 Rf6 38. Bd5 g6 39. Ra8 R2f5 40. Rdd8 Re5 41. Bc4 a5 42. Bb5 Rfe6 43. Bd7 Re7 44. Bc6 f5 45. Bxe8 Rxe8 46. Rxe8+ Rxe8 47. Rxa5 Re4 48. Kg3 Kf7 49. Ra6 Kg7 50. Rb6 g5 51. Kf3 h5 52. Ra6 Kf7 53. Rb6 h4 54. Ra6 Re6 55. Ra8 Rb6 56. Ra3 Kg6 57. Rc3 Rb5 58. Rc8 Rb3+ 59. Kf2 Kf6 60. Rg8 Rb7 61. Kf3 Rg7 62. Rf8+ Kg6 63. Ra8 Rb7 64. Rg8+ Kh6 65. Rh8+ Kg7 66. Ra8 Rb6 67. Ra4 Kg6 68. Ra3 Rb4 69. Ra6+ Kh5 70. Ra5 Rb3+ 71. Kf2 Kg6 72. Ra6+ Kh5 73. Ra5 f4 74. Ra6 Rg3 75. Ra5 Kg6 76. Ra6+ Kf7 77. Ra7+ Ke6 78. Ra6+ Kd7 79. Ra7+ Kc6 80. Ra5 Kd6 81. Rb5 Ke6 82. Ra5 Kf6 83. Ra6+ Kg7 84. Ra7+ Kg6 85. Ra6+ Kh5 86. Ra5 Rd3 87. Rf5 Re3 88. Rf6 Rg3 89. Rf5 Kg6 90. Rf8 Ra3 91. Rb8 Kh5 1/2-1/2

[Event "Panevezys Elite 2018"]
[Site "Panevezys"]
[Date "2018.07.03"]
[Round "6.8"]
[White "Malinin, Yuri"]
[Black "Vicas, Marijus"]
[Result "1/2-1/2"]
[ECO "D44"]
[WhiteElo "2176"]
[BlackElo "2183"]
[Annotator "ChessBase"]
[PlyCount "148"]
[EventDate "2018.06.29"]
[EventType "swiss"]
[EventRounds "9"]
[EventCountry "LTU"]
[SourceTitle "playchess.com"]
[Source "ChessBase"]
[SourceQuality "1"]
[TimeControl "40/5400+30:1800+30"]

1. Nf3 d5 2. c4 e6 3. d4 Nf6 4. Nc3 c6 5. Bg5 dxc4 6. a4 b5 7. axb5 cxb5 8. Nxb5 Qb6 9. Nc3 Qxb2 10. Bd2 Nd5 11. Nxd5 exd5 12. Rb1 Qa3 13. e4 Bd6 14. exd5 O-O 15. Bxc4 Re8+ 16. Be3 Qc3+ 17. Nd2 Bf5 18. Rb3 Qxd4 19. Be2 Qf6 20. Nc4 Nd7 21. O-O a5 22. Bd4 Qe7 23. Bf3 Bb4 24. d6 Qe6 25. Ne3 Be4 26. Bg4 Qxd6 27. Nc4 Qc7 28. Bxd7 Qxc4 29. Rg3 Bg6 30. Bxe8 Rxe8 31. Qa1 f6 32. Rc1 Qd5 33. h3 Ra8 34. Bc3 Bd6 35. Rd1 Qc6 36. Re3 a4 37. Qa2+ Bf7 38. Qd2 Bf4 39. Ba1 Bxe3 40. Qxe3 Re8 41. Qa3 Bb3 42. Rc1 Qe4 43. Qc5 Bd5 44. f3 Qe3+ 45. Kh2 Qf4+ 46. Kh1 Qd2 47. Bd4 Bf7 48. Ra1 h6 49. Bc3 Qc2 50. Bb4 Qxc5 51. Bxc5 Rc8 52. Rc1 Bb3 53. h4 g6 54. Kh2 Kf7 55. g4 h5 56. Kg3 Bd5 57. Kf4 Rc7 58. Rc3 a3 59. Bb4 Rxc3 60. Bxc3 Ke6 61. Ba1 a2 62. Bb2 Bb3 63. Ba1 Bc2 64. gxh5 gxh5 65. Ke3 Bd1 66. Bb2 f5 67. f4 Kd5 68. Be5 Ba4 69. Bg7 Bc6 70. Bh8 Kc4 71. Kd2 Be4 72. Bg7 Bb1 73. Bh8 Kd5 74. Ke3 Be4 1/2-1/2

[Event "Panevezys Elite 2018"]
[Site "Panevezys"]
[Date "2018.07.03"]
[Round "6.9"]
[White "Kalinowska, Zuzanna"]
[Black "Stasans, Aivars"]
[Result "1-0"]
[ECO "E61"]
[WhiteElo "1968"]
[BlackElo "2071"]
[Annotator "NA"]
[PlyCount "79"]
[EventDate "2018.06.29"]
[EventType "swiss"]
[EventRounds "9"]
[EventCountry "LTU"]
[SourceTitle "playchess.com"]
[Source "ChessBase"]
[SourceQuality "1"]
[TimeControl "40/5400+30:1800+30"]

1. d4 Nf6 2. c4 g6 3. Nc3 Bg7 4. Nf3 d6 5. e4 O-O 6. h3 e5 7. d5 a5 8. Bg5 h6 9. Be3 Na6 10. g4 Nc5 11. Nd2 Ne8 12. Rg1 Kh7 13. Qf3 c6 14. Bxc5 dxc5 15. dxc6 bxc6 16. Na4 Rb8 17. O-O-O Qg5 18. Bd3 Bf6 19. Kb1 Be7 20. Nb3 Rxb3 21. axb3 Nc7 22. Qe3 Ne6 23. Qe1 Bd8 24. Bc2 Qe7 25. Rg3 Nd4 26. Rgd3 Qa7 27. f4 Bf6 28. f5 Bg5 29. Qf2 Bf4 30. Nxc5 Qxc5 31. Rxd4 Rd8 32. Rxd8 Qxf2 33. Rxc8 Be3 34. Rd7 Kg7 35. Rxc6 Bg5 36. Rcc7 Qg1+ 37. Ka2 Qb6 38. Rxf7+ Kg8 39. Rfd7 Qb8 40. Rg7+ 1-0

[Event "Panevezys Elite 2018"]
[Site "Panevezys"]
[Date "2018.07.03"]
[Round "6.10"]
[White "Prigodin, Ruslan"]
[Black "Bekasovs, Rihards"]
[Result "1/2-1/2"]
[ECO "A05"]
[WhiteElo "2036"]
[BlackElo "2052"]
[Annotator "NA"]
[PlyCount "69"]
[EventDate "2018.06.29"]
[EventType "swiss"]
[EventRounds "9"]
[EventCountry "LTU"]
[SourceTitle "playchess.com"]
[Source "ChessBase"]
[SourceQuality "1"]
[TimeControl "40/5400+30:1800+30"]

1. Nf3 Nf6 2. g3 b5 3. Bg2 Bb7 4. O-O e6 5. b3 d5 6. d3 Nbd7 7. Bb2 Be7 8. Nbd2 O-O 9. e4 dxe4 10. Ng5 Nc5 11. Ngxe4 Nfxe4 12. Nxe4 Nxe4 13. Bxe4 Bd5 14. Re1 Bf6 15. Bxf6 Qxf6 16. Bxd5 exd5 17. Qh5 c6 18. Qe5 Qxe5 19. Rxe5 Rfe8 20. Rae1 Kf8 21. f4 Rxe5 22. Rxe5 Re8 23. Kf2 Rxe5 24. fxe5 a5 25. Ke3 c5 26. d4 c4 27. bxc4 bxc4 28. Kf4 Ke7 29. g4 Ke6 30. h4 f6 31. exf6 Kxf6 32. c3 g6 33. a4 h6 34. g5+ hxg5+ 35. hxg5+ 1/2-1/2

[Event "Panevezys Elite 2018"]
[Site "Panevezys"]
[Date "2018.07.03"]
[Round "6.11"]
[White "Brazdzionis, Andrius"]
[Black "Maryasin, Boris"]
[Result "1-0"]
[ECO "E04"]
[WhiteElo "2252"]
[BlackElo "2304"]
[Annotator "ChessBase"]
[PlyCount "121"]
[EventDate "2018.06.29"]
[EventType "swiss"]
[EventRounds "9"]
[EventCountry "LTU"]
[SourceTitle "playchess.com"]
[Source "ChessBase"]
[SourceQuality "1"]
[TimeControl "40/5400+30:1800+30"]

1. d4 Nf6 2. Nf3 e6 3. c4 d5 4. g3 dxc4 5. Bg2 Nc6 6. Qa4 Bb4+ 7. Bd2 Bd6 8. O-O O-O 9. Nc3 e5 10. d5 Nd4 11. Nxd4 exd4 12. Nb5 c3 13. bxc3 dxc3 14. Bxc3 Bd7 15. Qb3 Qe7 16. Nxd6 cxd6 17. Qxb7 Rfb8 18. Bxf6 gxf6 19. Qc7 Rc8 20. Qa5 Qxe2 21. Rfe1 Qh5 22. Qa6 Rc2 23. Qb7 Rd8 24. Rac1 Qe2 25. Qxa7 Rdc8 26. Ra1 Qd2 27. Be4 Rc1 28. Raxc1 Rxc1 29. Rxc1 Qxc1+ 30. Kg2 Qc4 31. Qb8+ Kg7 32. Qb1 f5 33. Bf3 Bb5 34. h3 f4 35. gxf4 Ba6 36. Kg3 Qc3 37. Qb6 Qa3 38. Qb3 Qc1 39. Qd1 Qc3 40. Qa4 Bd3 41. Qb3 Qd4 42. a4 Ba6 43. Qb8 Qc5 44. Qd8 h6 45. f5 Bd3 46. f6+ Kg6 47. Qh8 Qd4 48. Qg7+ Kf5 49. Qxf7 Qe5+ 50. Kg2 Qxf6 51. Bg4+ Ke5 52. Qe6+ Qxe6 53. dxe6 Kf6 54. f4 h5 55. Bxh5 Kxe6 56. Kf3 d5 57. Ke3 Ba6 58. Bg4+ Kd6 59. Kd4 Bf1 60. h4 Bg2 61. h5 1-0

[Event "Panevezys Elite 2018"]
[Site "Panevezys"]
[Date "2018.07.03"]
[Round "6.12"]
[White "Parligras, Cosmin"]
[Black "Tsiganova, Monika"]
[Result "0-1"]
[ECO "A00"]
[WhiteElo "2231"]
[BlackElo "2131"]
[Annotator "ChessBase"]
[PlyCount "58"]
[EventDate "2018.06.29"]
[EventType "swiss"]
[EventRounds "9"]
[EventCountry "LTU"]
[SourceTitle "playchess.com"]
[Source "ChessBase"]
[SourceQuality "1"]
[TimeControl "40/5400+30:1800+30"]

1. Nf3 Nf6 2. g3 g6 3. Bg2 Bg7 4. O-O O-O 5. d4 d6 6. b3 c6 7. Bb2 Nbd7 8. c4 Qc7 9. Nc3 e5 10. Qc2 exd4 11. Nxd4 Re8 12. Rad1 Nc5 13. Rd2 Bd7 14. Rfd1 a5 15. e3 Rad8 16. Qb1 h5 17. h4 Bg4 18. Re1 Qe7 19. Ba1 d5 20. cxd5 cxd5 21. Nde2 Bf5 22. Qd1 Nce4 23. Nxd5 Nxd5 24. Rxd5 Nxf2 25. Kxf2 Qxe3+ 26. Kf1 Rxd5 27. Qxd5 Bxa1 28. Rxa1 Bd3 29. Bf3 Re5 0-1

[Event "Panevezys Elite 2018"]
[Site "Panevezys"]
[Date "2018.07.03"]
[Round "6.13"]
[White "Sinitsina, Anastassia"]
[Black "Van Osch, Mees"]
[Result "0-1"]
[ECO "A00"]
[WhiteElo "2101"]
[BlackElo "2324"]
[Annotator "ChessBase"]
[PlyCount "88"]
[EventDate "2018.06.29"]
[EventType "swiss"]
[EventRounds "9"]
[EventCountry "LTU"]
[SourceTitle "playchess.com"]
[Source "ChessBase"]
[SourceQuality "1"]
[TimeControl "40/5400+30:1800+30"]

1. e4 c5 2. Nf3 e6 3. d4 cxd4 4. Nxd4 Nc6 5. Nc3 Bc5 6. Nb3 Bb4 7. Bd2 Nf6 8. Qf3 O-O 9. O-O-O a5 10. Kb1 a4 11. Nc1 a3 12. b3 Qa5 13. h3 d5 14. exd5 exd5 15. g4 d4 16. Ne4 Nxe4 17. Bxb4 Qxb4 18. Qxe4 Qc3 19. Nd3 Nb4 20. Qe2 Nxd3 21. cxd3 Be6 22. Rc1 Qb4 23. Bg2 Rac8 24. f4 Qd6 25. f5 Bd5 26. Rhe1 Rxc1+ 27. Rxc1 Bxg2 28. Qxg2 h6 29. Qxb7 Qh2 30. Rc2 Qg1+ 31. Rc1 Qh2 32. Rc2 Qg1+ 33. Rc1 Qf2 34. Rc2 Qf1+ 35. Rc1 Qf2 36. Rc2 Qf1+ 37. Rc1 Qe2 38. Rc2 Qe1+ 39. Rc1 Qd2 40. Rc2 Qd1+ 41. Rc1 Qxd3+ 42. Rc2 Re8 43. Qh1 Re2 44. Qc1 Qe4 0-1

[Event "Panevezys Elite 2018"]
[Site "Panevezys"]
[Date "2018.07.04"]
[Round "7.1"]
[White "Stremavicius, Titas"]
[Black "Laurusas, Tomas"]
[Result "1/2-1/2"]
[ECO "D91"]
[WhiteElo "2448"]
[BlackElo "2465"]
[Annotator "ChessBase"]
[PlyCount "64"]
[EventDate "2018.06.29"]
[EventType "swiss"]
[EventRounds "9"]
[EventCountry "LTU"]
[SourceTitle "playchess.com"]
[Source "ChessBase"]
[SourceQuality "1"]
[TimeControl "40/5400+30:1800+30"]

1. c4 Nf6 2. Nc3 d5 3. d4 g6 4. Nf3 Bg7 5. Bg5 Ne4 6. cxd5 Nxc3 7. bxc3 Qxd5 8. e3 c5 9. Bd3 cxd4 10. cxd4 Bg4 11. Rb1 Nc6 12. Rxb7 O-O 13. Rb5 Qxa2 14. O-O e5 15. d5 a6 16. Rc5 Nb4 17. Bb1 Qa3 18. Be7 Rfc8 19. Qd2 a5 20. Rb5 Rab8 21. Rxb8 Rxb8 22. Bd6 Re8 23. h3 Bxf3 24. gxf3 Rd8 25. Be7 Rd7 26. Bc5 Qb3 27. Bxb4 Qxb4 28. Qxb4 axb4 29. Ba2 Rc7 30. d6 Rc2 31. Bd5 Rd2 32. e4 b3 1/2-1/2

[Event "Panevezys Elite 2018"]
[Site "Panevezys"]
[Date "2018.07.04"]
[Round "7.2"]
[White "Badelka, Olga"]
[Black "Starostits, Ilmars"]
[Result "0-1"]
[ECO "A20"]
[WhiteElo "2407"]
[BlackElo "2449"]
[Annotator "ChessBase"]
[PlyCount "72"]
[EventDate "2018.06.29"]
[EventType "swiss"]
[EventRounds "9"]
[EventCountry "LTU"]
[SourceTitle "playchess.com"]
[Source "ChessBase"]
[SourceQuality "1"]
[TimeControl "40/5400+30:1800+30"]

1. c4 e5 2. g3 Nc6 3. Bg2 Bc5 4. Nc3 a6 5. e3 Ba7 6. Nge2 d6 7. d4 h5 8. h3 h4 9. g4 f5 10. gxf5 Bxf5 11. a3 Nf6 12. b4 O-O 13. c5 e4 14. Nf4 dxc5 15. bxc5 Qd7 16. Qb3+ Kh7 17. Bb2 Na5 18. Qb4 Nc6 19. Qa4 b5 20. Qc2 Rae8 21. O-O-O b4 22. Nb1 g5 23. Ne2 Nd5 24. a4 b3 25. Qxb3 Na5 26. Qa3 Bg6 27. Rhf1 Rb8 28. Nd2 Rb4 29. Bxe4 Bxe4 30. Nxe4 Nb3+ 31. Kc2 Qf5 32. N2c3 Rfb8 33. Nxd5 Qxe4+ 34. Kc3 Rc4+ 35. Kxc4 Qc2+ 36. Nc3 Na5+ 0-1

[Event "Panevezys Elite 2018"]
[Site "Panevezys"]
[Date "2018.07.04"]
[Round "7.3"]
[White "Bjerre, Jonas Buhl"]
[Black "Harutjunyan, Gevorg"]
[Result "1/2-1/2"]
[ECO "B19"]
[WhiteElo "2436"]
[BlackElo "2418"]
[Annotator "ChessBase"]
[PlyCount "149"]
[EventDate "2018.06.29"]
[EventType "swiss"]
[EventRounds "9"]
[EventCountry "LTU"]
[SourceTitle "playchess.com"]
[Source "ChessBase"]
[SourceQuality "1"]
[TimeControl "40/5400+30:1800+30"]

1. e4 c6 2. d4 d5 3. Nc3 dxe4 4. Nxe4 Bf5 5. Ng3 Bg6 6. h4 h6 7. Nf3 Nd7 8. h5 Bh7 9. Bd3 Bxd3 10. Qxd3 e6 11. Bd2 Bd6 12. Ne4 Bc7 13. g4 Ngf6 14. O-O-O Qe7 15. Nxf6+ Nxf6 16. Ne5 O-O-O 17. f4 Bxe5 18. fxe5 Nxg4 19. Qg3 Rxd4 20. Rh4 Rxd2 21. Rxd2 Nxe5 22. Qxg7 Re8 23. Re4 Nf3 24. Rg2 Rd8 25. Qc3 Nh4 26. Rg1 Nf5 27. Qa5 Qd6 28. Ree1 Qf4+ 29. Kb1 Qd4 30. a3 Ne3 31. Qb4 Qxb4 32. axb4 Nf5 33. c3 Kc7 34. Kc1 Rd5 35. Rg8 Nd6 36. Rh1 a5 37. Rh8 axb4 38. Rxh6 b3 39. Rh8 Nc4 40. Ra8 Rd2 41. Ra4 Rc2+ 42. Kb1 Rxb2+ 43. Ka1 b5 44. Ra3 Rg2 45. Rxb3 Rg8 46. Rh2 Ra8+ 47. Ra2 Rh8 48. Rh2 Rh6 49. Rb1 Kd6 50. Rd1+ Ke7 51. Ka2 e5 52. Kb3 e4 53. Kb4 f5 54. Kc5 Ne5 55. Ra1 Nd3+ 56. Kd4 Kd6 57. Ra8 c5+ 58. Ke3 Kd5 59. Rd8+ Kc4 60. Rf8 Kxc3 61. Rxf5 b4 62. Kxe4 b3 63. Rf1 c4 64. Kf5 b2 65. Kg5 Rh8 66. h6 Rg8+ 67. Kh5 Nf4+ 68. Kh4 Nd3 69. Kh5 Kb3 70. h7 Rh8 71. Kg6 c3 72. Rb1 c2 73. Rxc2 Kxc2 74. Rxb2+ Kxb2 75. Kg7 1/2-1/2

[Event "Panevezys Elite 2018"]
[Site "Panevezys"]
[Date "2018.07.04"]
[Round "7.4"]
[White "Ratsma, Midas"]
[Black "Kveinys, Aloyzas"]
[Result "0-1"]
[ECO "E32"]
[WhiteElo "2253"]
[BlackElo "2537"]
[Annotator "ChessBase"]
[PlyCount "42"]
[EventDate "2018.06.29"]
[EventType "swiss"]
[EventRounds "9"]
[EventCountry "LTU"]
[SourceTitle "playchess.com"]
[Source "ChessBase"]
[SourceQuality "1"]
[TimeControl "40/5400+30:1800+30"]

1. d4 Nf6 2. c4 e6 3. Nc3 Bb4 4. Qc2 O-O 5. Nf3 c5 6. dxc5 Bxc5 7. Bf4 b6 8. e3 Bb7 9. Be2 Be7 10. Rd1 a6 11. O-O Qc8 12. Ng5 h6 13. Nge4 Ne8 14. Qb3 Nc6 15. Na4 Na5 16. Qxb6 Bxe4 17. Qxa5 Qc6 18. Nc3 Bxg2 19. Nd5 Bd8 20. Qxd8 exd5 21. cxd5 Qg6 0-1

[Event "Panevezys Elite 2018"]
[Site "Panevezys"]
[Date "2018.07.04"]
[Round "7.5"]
[White "Grib, Roman"]
[Black "Priyanka Nutakki"]
[Result "1/2-1/2"]
[ECO "C19"]
[WhiteElo "2445"]
[BlackElo "2180"]
[Annotator "ChessBase"]
[PlyCount "87"]
[EventDate "2018.06.29"]
[EventType "swiss"]
[EventRounds "9"]
[EventCountry "LTU"]
[SourceTitle "playchess.com"]
[Source "ChessBase"]
[SourceQuality "1"]
[TimeControl "40/5400+30:1800+30"]

1. e4 e6 2. d4 d5 3. Nc3 Bb4 4. e5 c5 5. a3 Bxc3+ 6. bxc3 Ne7 7. Nf3 Nbc6 8. a4 Qa5 9. Bd2 Bd7 10. Bb5 a6 11. Bxc6 Nxc6 12. O-O O-O 13. h4 f6 14. Re1 fxe5 15. Nxe5 Nxe5 16. Rxe5 Qc7 17. Qg4 cxd4 18. Qxd4 Rac8 19. Rg5 Rf7 20. Rb1 b5 21. axb5 axb5 22. h5 Qc5 23. Qh4 Qc4 24. Qg3 Qc7 25. Re5 Rf6 26. Rb4 Rf5 27. f4 Qa7+ 28. Kh2 Rxe5 29. fxe5 Rc4 30. Qg5 Be8 31. h6 Qf7 32. Kg1 Qg6 33. Qe7 Qf7 34. Qg5 Qg6 35. Qd8 Rxb4 36. cxb4 Qh5 37. Be1 gxh6 38. Bh4 Qd1+ 39. Kh2 Qh5 40. Kg1 Qd1+ 41. Kh2 Qh5 42. Kh1 Qd1+ 43. Kh2 Qh5 44. Kg1 1/2-1/2

[Event "Panevezys Elite 2018"]
[Site "Panevezys"]
[Date "2018.07.04"]
[Round "7.6"]
[White "Vovk, Ilja"]
[Black "Berzina, Ilze"]
[Result "1/2-1/2"]
[ECO "A07"]
[WhiteElo "2273"]
[BlackElo "2173"]
[Annotator "ChessBase"]
[PlyCount "105"]
[EventDate "2018.06.29"]
[EventType "swiss"]
[EventRounds "9"]
[EventCountry "LTU"]
[SourceTitle "playchess.com"]
[Source "ChessBase"]
[SourceQuality "1"]
[TimeControl "40/5400+30:1800+30"]

1. Nf3 d5 2. g3 Bg4 3. Bg2 c6 4. O-O Nf6 5. d3 e6 6. c4 Bd6 7. cxd5 cxd5 8. Qb3 Qb6 9. Qxb6 axb6 10. Nc3 Nc6 11. Nb5 Ke7 12. Nxd6 Kxd6 13. Bf4+ Kd7 14. Be3 Ra6 15. a3 Bxf3 16. Bxf3 Kd6 17. Rac1 Nd7 18. Bg2 Ra4 19. Bf4+ Ke7 20. e4 d4 21. Bf3 Nc5 22. Bd1 Raa8 23. Bc2 Na4 24. Bxa4 Rxa4 25. Rc2 Rc8 26. Rfc1 Kd7 27. Bd2 Raa8 28. f4 Na5 29. Bxa5 bxa5 30. Rc4 b5 31. Rc5 f6 32. f5 exf5 33. exf5 Rxc5 34. Rxc5 Rb8 35. Rd5+ Kc6 36. Rxd4 Re8 37. Kf2 Re5 38. g4 Rc5 39. Re4 Kd5 40. Ke3 Rc2 41. b4 axb4 42. Rxb4 Kc5 43. d4+ Kc6 44. a4 bxa4 45. Rxa4 Rxh2 46. Ra7 Rh3+ 47. Ke4 h5 48. Rxg7 Rh4 49. Rf7 Rxg4+ 50. Ke3 Kd5 51. Rd7+ Kc4 52. d5 Kc5 53. Rd8 1/2-1/2

[Event "Panevezys Elite 2018"]
[Site "Panevezys"]
[Date "2018.07.04"]
[Round "7.7"]
[White "Juksta, Karolis"]
[Black "Kalinowska, Zuzanna"]
[Result "1-0"]
[ECO "E25"]
[WhiteElo "2187"]
[BlackElo "1968"]
[Annotator "ChessBase"]
[PlyCount "119"]
[EventDate "2018.06.29"]
[EventType "swiss"]
[EventRounds "9"]
[EventCountry "LTU"]
[SourceTitle "playchess.com"]
[Source "ChessBase"]
[SourceQuality "1"]
[TimeControl "40/5400+30:1800+30"]

1. d4 Nf6 2. c4 e6 3. Nc3 Bb4 4. f3 d5 5. a3 Bxc3+ 6. bxc3 c5 7. cxd5 Nxd5 8. dxc5 Qa5 9. e4 Nf6 10. Be3 O-O 11. Qb3 Nfd7 12. a4 Qc7 13. Qa3 a5 14. Rb1 Na6 15. Rb5 Ne5 16. Be2 Bd7 17. Rb1 Rfc8 18. f4 Ng6 19. Bxa6 Rxa6 20. Ne2 Bc6 21. O-O Bxe4 22. Rb2 Nh4 23. Ng3 Nf5 24. Bd4 Nxg3 25. hxg3 f6 26. Rd2 Rd8 27. Rfd1 Raa8 28. Re1 Qc6 29. Qa2 Bd5 30. Qc2 Bc4 31. Rf2 Qd5 32. g4 Bb3 33. Qc1 Bxa4 34. g5 f5 35. Re5 Qc4 36. Qe3 Bb3 37. Qf3 Rd7 38. g4 a4 39. gxf5 exf5 40. g6 a3 41. Qe3 Rf8 42. Re7 Rxd4 43. gxh7+ Kh8 44. Qxd4 Qxd4 45. cxd4 a2 46. Rf1 Bd5 47. Ra1 Ra8 48. Rd7 Bc6 49. Rd6 Be4 50. d5 Bb1 51. Rb6 Rc8 52. Rb5 Kxh7 53. Kf2 Bd3 54. Ra5 Bc4 55. d6 Rd8 56. Ra4 Bg8 57. Rb4 Bd5 58. Ke3 Re8+ 59. Kd4 Bg8 60. d7 1-0

[Event "Panevezys Elite 2018"]
[Site "Panevezys"]
[Date "2018.07.04"]
[Round "7.8"]
[White "Vicas, Marijus"]
[Black "Brazdzionis, Andrius"]
[Result "0-1"]
[ECO "B07"]
[WhiteElo "2183"]
[BlackElo "2252"]
[Annotator "ChessBase"]
[PlyCount "130"]
[EventDate "2018.06.29"]
[EventType "swiss"]
[EventRounds "9"]
[EventCountry "LTU"]
[SourceTitle "playchess.com"]
[Source "ChessBase"]
[SourceQuality "1"]
[TimeControl "40/5400+30:1800+30"]

1. e4 d6 2. d4 Nf6 3. Nc3 g6 4. Be3 Bg7 5. Qd2 c6 6. Bh6 Bxh6 7. Qxh6 Qa5 8. Bd3 c5 9. Nf3 cxd4 10. Nxd4 Nc6 11. Nb3 Qb6 12. O-O Be6 13. h3 Rg8 14. Qd2 O-O-O 15. a4 Bxb3 16. cxb3 Kb8 17. Nb5 a6 18. a5 Qc5 19. Rfc1 Nxe4 20. Bxe4 Qxb5 21. Bxc6 bxc6 22. Ra4 c5 23. Rac4 Rc8 24. Kh2 Qxb3 25. R1c3 Qa2 26. Re4 Rc7 27. Ra3 Qb1 28. Qe2 Rb7 29. Rxe7 Qxb2 30. Rxb7+ Qxb7 31. Qc4 Ka7 32. g3 Rb8 33. Re3 f5 34. h4 Qb2 35. Kg2 Qb5 36. Qe6 Qc6+ 37. Kh2 c4 38. Qf7+ Rb7 39. Qg8 Qc5 40. Kg2 Qc6+ 41. Kh2 c3 42. Re8 Rc7 43. Rb8 Qf3 44. Qd8 Qxf2+ 45. Kh3 Qf1+ 46. Kh2 Qe2+ 47. Kh3 Qf1+ 48. Kh2 Qe2+ 49. Kh3 Qe7 50. Ra8+ Kb7 51. Qb8+ Kc6 52. Rxa6+ Kd5 53. Qb5+ Ke6 54. Rc6 Kf6 55. Qc4 Rxc6 56. Qxc6 Qe3 57. Qxd6+ Kg7 58. Qc6 f4 59. Kg2 Qxg3+ 60. Kf1 Qd3+ 61. Kg1 Qe3+ 62. Kf1 f3 63. Qc4 Qd2 64. Qc7+ Kh6 65. Qg3 Qg2+ 0-1

[Event "Panevezys Elite 2018"]
[Site "Panevezys"]
[Date "2018.07.04"]
[Round "7.9"]
[White "Bekasovs, Rihards"]
[Black "Malinin, Yuri"]
[Result "1/2-1/2"]
[ECO "A06"]
[WhiteElo "2052"]
[BlackElo "2176"]
[Annotator "ChessBase"]
[PlyCount "23"]
[EventDate "2018.06.29"]
[EventType "swiss"]
[EventRounds "9"]
[EventCountry "LTU"]
[SourceTitle "playchess.com"]
[Source "ChessBase"]
[SourceQuality "1"]
[TimeControl "40/5400+30:1800+30"]

1. Nf3 d5 2. e3 Bg4 3. c4 Bxf3 4. Qxf3 e6 5. b3 Nf6 6. Bb2 Nbd7 7. Nc3 c6 8. Qd1 Bd6 9. d4 h5 10. Qc2 a6 11. Bd3 b5 12. h3 1/2-1/2